bitfinex/quotes_SOLUSD_20250622
["timestamp","ask_amount","ask_price","bid_price","bid_amount"]
[1750582294924,30.24,134.78,134.77,7.42004897]
[1750582296348,29.64,134.78,134.77,7.42004897]
[1750582297001,58.87655709,134.78,134.77,7.42004897]
[1750582297516,48.28964886,134.78,134.77,7.42004897]
[1750582298417,18.64964886,134.77,134.75,7.42115027]
[1750582298627,19.5772788,134.77,134.75,7.42115027]
[1750582301431,146.9,134.77,134.76,10.58690823]
[1750582301829,12.9549,134.81,134.76,10.58690823]
[1750582301830,159.8549,134.81,134.76,10.58690823]
[1750582302009,146.9,134.8,134.79,10.58690823]
[1750582303046,146.9,134.8,134.79,18.00585622]
[1750582306952,146.9,134.8,134.79,7.41894799]
[1750582307113,165.54964886,134.8,134.79,7.41894799]
[1750582308837,18.64964886,134.8,134.79,7.41894799]
[1750582309138,19.57710301,134.8,134.78,18.00640667]
[1750582309442,36.7,134.81,134.78,36.55515277]
[1750582309649,37.62737281,134.81,134.78,36.55515277]
[1750582314643,37.62737281,134.81,134.78,25.96824454]
[1750582314644,146.9,134.79,134.78,25.96824454]
[1750582314827,146.9,134.79,134.78,7.41949844]
[1750582316538,146.9,134.79,134.77,7.42004897]
[1750582316941,177.14,134.79,134.77,7.42004897]
[1750582318936,147.82750634,134.78,134.75,29.13856347]
[1750582319252,177.14,134.77,134.75,18.55165524]
[1750582319433,0.92769008,134.76,134.75,18.55165524]
[1750582319750,177.14,134.77,134.75,18.55165524]
[1750582319937,0.92765927,134.76,134.75,18.55165524]
[1750582320648,0.92765927,134.76,134.74,18.00860928]
[1750582320855,0.92765927,134.76,134.74,7.42170105]
[1750582321030,31.16765927,134.76,134.74,7.42170105]
[1750582321231,18.64964886,134.75,134.74,7.42170105]
[1750582321427,25.10964886,134.75,134.74,7.42170105]
[1750582322457,35.69655709,134.75,134.74,7.42170105]
[1750582322747,43.46625709,134.75,134.74,7.42170105]
[1750582322953,43.46625709,134.75,134.72,7.42280285]
[1750582323258,18.64964886,134.73,134.72,7.42280285]
[1750582324137,177.14,134.74,134.72,7.42280285]
[1750582324551,0.92788095,134.73,134.72,7.42280285]
[1750582324929,146.9,134.74,134.72,7.42280285]
[1750582325443,0.92787359,134.73,134.72,7.42280285]
[1750582326532,146.9,134.74,134.72,7.42280285]
[1750582327049,0.92787222,134.73,134.72,7.42280285]
[1750582327952,146.9,134.74,134.72,7.42280285]
[1750582328344,0.92787236,134.73,134.72,7.42280285]
[1750582328547,0.92787328,134.73,134.72,7.42280285]
[1750582328850,146.9,134.74,134.72,7.42280285]
[1750582329747,0.92786504,134.73,134.72,7.42280285]
[1750582330431,146.9,134.74,134.72,7.42280285]
[1750582331452,146.9,134.74,134.72,18.00971108]
[1750582332248,146.9,134.74,134.72,7.42280285]
[1750582332456,146.9,134.74,134.72,18.00971108]
[1750582332651,146.9,134.73,134.72,18.00971108]
[1750582333656,146.9,134.73,134.72,7.42280285]
[1750582336364,146.9,134.73,134.71,25.98145822]
[1750582336535,146.9,134.72,134.71,25.98145822]
[1750582336964,146.9,134.72,134.71,7.42335387]
[1750582336965,165.54964886,134.72,134.71,7.42335387]
[1750582338471,165.54964886,134.72,134.7,7.42390497]
[1750582338772,195.78964886,134.72,134.7,7.42390497]
[1750582338951,0.92801206,134.71,134.7,7.42390497]
[1750582339361,195.78964886,134.72,134.7,7.42390497]
[1750582339561,0.92801261,134.71,134.7,7.42390497]
[1750582339761,195.78964886,134.72,134.7,7.42390497]
[1750582340344,0.92800751,134.71,134.7,7.42390497]
[1750582341848,0.92800751,134.71,134.69,7.42445615]
[1750582342355,0.92800751,134.71,134.69,18.01136438]
[1750582342559,0.92800751,134.71,134.69,10.58690823]
[1750582342764,0.92800751,134.71,134.64,119.00497351]
[1750582342943,146.9,134.7,134.69,10.58690823]
[1750582343344,146.9,134.7,134.64,119.00497351]
[1750582343661,146.9,134.7,134.69,10.58690823]
[1750582345167,146.9,134.7,134.68,10.58690823]
[1750582345375,146.9,134.7,134.67,18.56389693]
[1750582345557,146.9,134.7,134.69,10.58690823]
[1750582346470,146.9,134.7,134.69,18.01136438]
[1750582346678,146.9,134.7,134.69,7.42445615]
[1750582346868,146.9,134.7,134.69,18.01136438]
[1750582347446,146.9,134.7,134.69,7.42445615]
[1750582347846,18.64964886,134.71,134.69,7.42445615]
[1750582348077,19.5777351,134.71,134.69,7.42445615]
[1750582349056,0.92809152,134.7,134.67,18.56389693]
[1750582349251,0.92809152,134.7,134.68,10.58690823]
[1750582349581,18.64964886,134.71,134.68,10.58690823]
[1750582349968,18.64964886,134.71,134.67,18.56389693]
[1750582350277,0.92807237,134.7,134.69,7.42445615]
[1750582350471,18.64964886,134.71,134.69,7.42445615]
[1750582350472,19.57773898,134.71,134.69,7.42445615]
[1750582351076,19.57773898,134.71,134.69,18.01136438]
[1750582351275,19.57773898,134.71,134.67,18.56389693]
[1750582351276,19.57773898,134.71,134.68,10.58690823]
[1750582351581,49.81773898,134.71,134.67,29.15080516]
[1750582351785,146.9,134.69,134.67,29.15080516]
[1750582352480,146.9,134.69,134.67,36.57636393]
[1750582353172,153.3069,134.69,134.67,7.42555877]
[1750582353373,177.06469176,134.68,134.65,7.42666171]
[1750582353565,48.88964886,134.67,134.65,7.42666171]
[1750582353776,19.57808336,134.66,134.65,7.42666171]
[1750582354361,30.16499159,134.66,134.6,18.57344892]
[1750582354685,18.64964886,134.64,134.6,10.58690823]
[1750582354899,30.24,134.66,134.62,10.58690823]
[1750582355051,18.64964886,134.66,134.63,10.58690823]
[1750582355253,31.16860053,134.67,134.64,10.58690823]
[1750582355493,19.57824939,134.67,134.64,10.58690823]
[1750582356271,15.19656039,134.68,134.66,10.58690823]
[1750582356458,15.19656039,134.68,134.67,7.42555877]
[1750582357565,15.19656039,134.68,134.65,18.56625422]
[1750582357566,15.19656039,134.68,134.66,10.58690823]
[1750582358870,15.19656039,134.68,134.62,63.13910019]
[1750582359064,15.19656039,134.68,134.66,10.58690823]
[1750582359586,15.19656039,134.68,134.65,10.58690823]
[1750582359790,0.92821313,134.67,134.62,63.13910019]
[1750582359993,0.92821313,134.67,134.65,10.58690823]
[1750582359994,147.82821313,134.67,134.65,10.58690823]
[1750582360159,146.9,134.67,134.65,10.58690823]
[1750582361071,146.9,134.67,134.66,7.4261102]
[1750582362393,146.9,134.67,134.62,63.13910019]
[1750582362595,146.9,134.67,134.65,10.58690823]
[1750582363574,146.9,134.67,134.62,63.13910019]
[1750582363917,146.9,134.67,134.65,10.58690823]
[1750582364462,146.9,134.67,134.62,63.13910019]
[1750582364664,146.9,134.67,134.66,7.4261102]
[1750582366400,146.9,134.67,134.66,18.01301843]
[1750582366803,15.19656039,134.68,134.67,26.0]
[1750582367084,15.19656039,134.68,134.67,48.76891646]
[1750582367894,146.9,134.71,134.67,48.76891646]
[1750582368080,146.9,134.71,134.7,10.58690823]
[1750582369073,146.9,134.71,134.7,18.0108132]
[1750582373216,6.44,134.74,134.7,36.57057563]
[1750582373502,6.44,134.74,134.73,10.58690823]
[1750582375197,6.44,134.74,134.73,18.00916014]
[1750582376588,146.9,134.75,134.73,44.00916014]
[1750582376782,146.9,134.75,134.74,10.58690823]
[1750582377218,146.9,134.75,134.74,18.00860928]
[1750582377822,153.34,134.79,134.74,73.67136717]
[1750582378118,153.34,134.79,134.78,10.58690823]
[1750582379215,153.34,134.79,134.78,18.00640667]
[1750582379417,153.34,134.79,134.76,18.55108687]
[1750582379418,18.64964886,134.78,134.71,26.0]
[1750582379586,18.64964886,134.78,134.7,44.54342984]
[1750582379587,18.64964886,134.76,134.73,10.58690823]
[1750582379785,0.92774884,134.75,134.7,63.10319227]
[1750582380029,7.9046,134.75,134.72,10.58690823]
[1750582380203,39.05246454,134.75,134.72,10.58690823]
[1750582380407,8.83246454,134.75,134.72,10.58690823]
[1750582380789,8.83246454,134.75,134.71,10.58690823]
[1750582381520,8.83246454,134.75,134.72,7.42280285]
[1750582383542,8.83246454,134.75,134.72,25.97980997]
[1750582385120,8.83246454,134.75,134.72,10.58690823]
[1750582385632,18.64964886,134.77,134.74,10.58690823]
[1750582385807,147.82766732,134.76,134.74,10.58690823]
[1750582386000,146.9,134.76,134.74,10.58690823]
[1750582386646,146.9,134.76,134.73,10.58690823]
[1750582386937,18.64964886,134.75,134.72,10.58690823]
[1750582387142,0.92785871,134.74,134.73,7.42225191]
[1750582389432,7.36785871,134.74,134.73,7.42225191]
[1750582393542,6.44,134.74,134.73,7.42225191]
[1750582394917,7.36777731,134.74,134.73,7.42225191]
[1750582399338,7.36777731,134.74,134.72,7.42280285]
[1750582403745,146.9,134.73,134.72,7.42280285]
[1750582410252,146.83994133,134.73,134.72,7.42280285]
[1750582412237,18.64964886,134.72,134.7,7.42390497]
[1750582412435,0.92808213,134.71,134.7,7.42390497]
[1750582412868,18.64964886,134.72,134.7,7.42390497]
[1750582412869,19.57766244,134.72,134.7,7.42390497]
[1750582415244,0.92801358,134.72,134.7,7.42390497]
[1750582415449,183.69404133,134.73,134.7,36.57057563]
[1750582415649,153.47404133,134.73,134.7,36.57057563]
[1750582416069,0.92791408,134.72,134.7,36.57057563]
[1750582416371,0.92791408,134.72,134.7,25.9836674]
[1750582418077,153.47404133,134.73,134.7,10.58690823]
[1750582418992,19.57757311,134.72,134.69,10.58690823]
[1750582419674,19.57757311,134.72,134.68,36.57443421]
[1750582419846,49.79757311,134.72,134.68,36.57443421]
[1750582420763,157.42684956,134.71,134.68,25.98752598]
[1750582420980,0.92816265,134.7,134.68,25.98752598]
[1750582421271,31.14816265,134.7,134.68,25.98752598]
[1750582421772,31.14816265,134.7,134.68,7.42500742]
[1750582422678,18.64964886,134.69,134.68,7.42500742]
[1750582422889,165.48959019,134.69,134.68,7.42500742]
[1750582423199,176.07649842,134.69,134.68,7.42500742]
[1750582423907,176.07649842,134.69,134.66,25.991315]
[1750582424192,37.58827056,134.68,134.66,25.991315]
[1750582425492,7.36827056,134.68,134.66,25.991315]
[1750582433874,7.36827056,134.68,134.66,36.57822323]
[1750582434406,6.44,134.68,134.67,10.58690823]
[1750582434772,0.92795289,134.72,134.67,10.58690823]
[1750582434974,0.92795289,134.72,134.69,10.58690823]
[1750582435579,0.92795289,134.72,134.7,10.58690823]
[1750582435782,44.22204794,134.73,134.71,7.42335387]
[1750582436413,6.44,134.73,134.71,18.0102621]
[1750582437318,6.44,134.73,134.72,10.58690823]
[1750582439991,6.44,134.73,134.72,18.00971108]
[1750582441388,6.44,134.73,134.72,10.58690823]
[1750582442382,6.44,134.73,134.72,18.00971108]
[1750582444284,7.36776278,134.78,134.72,73.68073245]
[1750582444503,7.36776278,134.78,134.74,10.58690823]
[1750582445589,7.36776278,134.78,134.75,7.42115027]
[1750582446544,7.36776278,134.78,134.75,18.0080585]
[1750582447394,37.58776278,134.78,134.75,18.0080585]
[1750582450320,6.44,134.78,134.76,10.58690823]
[1750582450493,6.44,134.78,134.77,10.58690823]
[1750582451526,6.44,134.78,134.77,26.0]
[1750582451682,6.44,134.78,134.75,25.97402596]
[1750582452819,6.44,134.78,134.76,10.58690823]
[1750582453913,6.44,134.78,134.77,7.42004897]
[1750582456610,24.79824886,134.77,134.73,36.56475455]
[1750582456811,31.12774589,134.76,134.73,36.56475455]
[1750582458630,31.12774589,134.76,134.74,10.58690823]
[1750582460031,31.12774589,134.76,134.75,7.42115027]
[1750582461134,30.2,134.76,134.75,7.42115027]
[1750582464308,48.84964886,134.76,134.75,7.42115027]
[1750582465522,49.77743982,134.76,134.75,7.42115027]
[1750582466029,49.77743982,134.76,134.73,29.14250264]
[1750582469055,49.77743982,134.76,134.73,25.97784632]
[1750582470719,49.77743982,134.76,134.73,36.56475455]
[1750582474831,6.44,134.75,134.73,36.56475455]
[1750582476946,6.44,134.75,134.73,32.76861762]
[1750582486849,0.92780366,134.74,134.73,32.76861762]
[1750582487015,7.36780555,134.75,134.73,32.76861762]
[1750582488831,7.36780555,134.75,134.73,18.55559441]
[1750582489038,30.2,134.74,134.72,14.21357415]
[1750582490561,0.92784243,134.73,134.72,7.42280285]
[1750582491462,177.96783167,134.74,134.72,14.21357415]
[1750582491638,177.03994133,134.74,134.72,14.21357415]
[1750582493032,0.92788306,134.73,134.72,14.21357415]
[1750582495868,0.92788306,134.73,134.71,6.7907713]
[1750582498558,0.92788306,134.73,134.72,7.42280285]
[1750582499359,0.92788306,134.73,134.72,14.21357415]
[1750582499986,177.03994133,134.74,134.72,14.21357415]
[1750582500156,146.83994133,134.74,134.72,14.21357415]
[1750582501875,0.92785595,134.73,134.72,7.42280285]
[1750582505767,146.83994133,134.74,134.72,7.42280285]
[1750582506194,0.92787177,134.73,134.72,7.42280285]
[1750582507178,146.83994133,134.74,134.72,14.21357415]
[1750582509491,146.83994133,134.74,134.73,6.7907713]
[1750582510594,146.83994133,134.74,134.73,14.21302321]
[1750582510768,146.83994133,134.74,134.73,7.42225191]
[1750582511591,195.66959019,134.74,134.73,7.42225191]
[1750582511982,146.83994133,134.74,134.73,14.21302321]
[1750582530704,6.44,134.75,134.73,14.21302321]
[1750582530879,6.44,134.75,134.74,6.7907713]
[1750582531081,6.44,134.75,134.74,7.42170105]
[1750582531280,6.44,134.75,134.74,14.21247235]
[1750582533109,6.44,134.75,134.74,7.42170105]
[1750582533485,25.08964886,134.75,134.74,7.42170105]
[1750582534009,30.65155531,134.75,134.74,7.42170105]
[1750582534905,30.65155531,134.75,134.73,7.42225191]
[1750582535211,31.10787698,134.74,134.73,7.42225191]
[1750582535990,30.18,134.74,134.73,14.21302321]
[1750582537091,56.19745998,134.75,134.73,14.21302321]
[1750582538598,56.19745998,134.75,134.74,6.7907713]
[1750582538914,26.01745998,134.75,134.74,6.7907713]
[1750582539213,26.01745998,134.75,134.74,14.21247235]
[1750582539709,26.01745998,134.75,134.74,7.42170105]
[1750582540784,31.57912454,134.75,134.73,7.42225191]
[1750582541086,30.16,134.74,134.73,7.42225191]
[1750582546537,18.64964886,134.74,134.73,7.42225191]
[1750582546686,49.73758844,134.74,134.73,7.42225191]
[1750582547700,49.73758844,134.74,134.72,7.42280285]
[1750582550422,49.73758844,134.74,134.72,14.21357415]
[1750582550911,153.23994133,134.75,134.73,6.7907713]
[1750582551088,153.23994133,134.75,134.74,6.7907713]
[1750582552313,153.23994133,134.75,134.74,14.21247235]
[1750582554305,153.23994133,134.75,134.74,7.42170105]
[1750582558416,171.88959019,134.75,134.74,7.42170105]
[1750582560717,177.45018644,134.75,134.72,7.42280285]
[1750582560921,31.0878884,134.74,134.72,7.42280285]
[1750582561305,18.64964886,134.73,134.72,7.42280285]
[1750582562592,18.64964886,134.73,134.7,25.9836268]
[1750582562796,31.08799534,134.72,134.7,25.9836268]
[1750582563622,31.08799534,134.72,134.7,32.7743981]
[1750582563823,160.03071263,134.75,134.71,6.7907713]
[1750582563824,146.83994133,134.75,134.71,6.7907713]
[1750582564025,146.83994133,134.75,134.74,6.7907713]
[1750582564231,6.4,134.77,134.74,6.7907713]
[1750582564425,6.4,134.77,134.75,6.7907713]
[1750582564819,6.4,134.77,134.76,7.42059958]
[1750582565011,6.4,134.77,134.76,14.21137088]
[1750582566919,6.4,134.77,134.76,10.60765213]
[1750582568859,6.4,134.77,134.76,18.02825171]
[1750582579929,6.4,134.77,134.74,51.97552127]
[1750582580126,6.4,134.77,134.76,10.60765213]
[1750582581053,6.4,134.77,134.76,18.02825171]
[1750582582240,6.4,134.77,134.75,7.42115027]
[1750582582440,6.4,134.77,134.76,10.60765213]
[1750582584355,18.64964886,134.76,134.73,18.02990404]
[1750582584545,31.06782376,134.75,134.73,7.42225191]
[1750582584745,165.48959019,134.74,134.72,7.42267031]
[1750582584951,55.91098116,134.73,134.72,7.42267031]
[1750582585961,31.0680323,134.73,134.72,18.03032244]
[1750582586173,146.83994133,134.74,134.72,18.03032244]
[1750582586372,146.83994133,134.74,134.73,10.60765213]
[1750582588137,146.83994133,134.74,134.73,18.02990404]
[1750582588656,146.83994133,134.74,134.73,7.42225191]
[1750582588963,146.83994133,134.74,134.73,18.02990404]
[1750582589336,146.83994133,134.74,134.73,7.42225191]
[1750582598164,146.83994133,134.74,134.73,18.02990404]
[1750582601186,146.83994133,134.74,134.73,7.42225191]
[1750582601354,146.83994133,134.74,134.73,18.02990404]
[1750582603491,146.83994133,134.74,134.73,7.42225191]
[1750582606888,146.83994133,134.74,134.71,7.42335387]
[1750582607083,31.06788209,134.73,134.72,10.60765213]
[1750582608274,31.06788209,134.73,134.72,18.03045498]
[1750582608878,30.14,134.73,134.72,14.21552556]
[1750582609271,176.97994133,134.74,134.72,14.21552556]
[1750582609470,176.97994133,134.74,134.73,6.79272271]
[1750582611886,176.97994133,134.74,134.73,14.21497462]
[1750582613393,176.97994133,134.74,134.73,7.42225191]
[1750582614189,176.97994133,134.74,134.73,14.21497462]
[1750582632496,18.64964886,134.73,134.66,1.5321]
[1750582632692,18.64964886,134.71,134.69,6.79272271]
[1750582632898,18.64964886,134.71,134.63,37.13882492]
[1750582632899,49.71772997,134.71,134.7,6.79272271]
[1750582634517,49.71772997,134.71,134.7,14.21662768]
[1750582635705,56.09772997,134.71,134.7,14.21662768]
[1750582636417,159.9355,134.75,134.7,32.77639011]
[1750582636717,208.72514886,134.75,134.74,6.79272271]
[1750582637011,214.2882557,134.75,134.74,6.79272271]
[1750582637486,208.72514886,134.75,134.74,6.79272271]
[1750582637883,6.38,134.75,134.74,6.79272271]
[1750582638092,6.38,134.78,134.74,33.96361355]
[1750582638423,6.38,134.78,134.77,14.21277168]
[1750582638826,6.38,134.78,134.77,18.02473148]
[1750582644633,22.05941453,134.81,134.8,26.0]
[1750582644839,6.38,134.85,134.8,36.60468251]
[1750582645044,6.38,134.85,134.84,10.60468251]
[1750582645329,6.38,134.85,134.84,18.02087948]
[1750582646232,6.38,134.9,134.84,36.56137191]
[1750582646406,0.92668058,134.89,134.84,25.9566894]
[1750582646733,49.69632944,134.89,134.87,10.60468251]
[1750582646940,49.69632944,134.89,134.88,10.60468251]
[1750582646941,31.04668058,134.89,134.88,10.60468251]
[1750582647115,0.92668058,134.89,134.88,10.60468251]
[1750582647426,0.92668058,134.89,134.88,18.01868013]
[1750582650127,6.38,134.9,134.88,18.01868013]
[1750582650311,6.38,134.9,134.89,10.60468251]
[1750582650519,6.38,134.9,134.89,21.20936502]
[1750582650836,6.38,134.9,134.89,10.60468251]
[1750582651825,6.38,134.9,134.89,18.0181305]
[1750582652704,25.95625382,134.9,134.88,10.60468251]
[1750582653130,56.05625382,134.9,134.88,10.60468251]
[1750582653324,56.05625382,134.9,134.89,10.60468251]
[1750582654033,56.05625382,134.9,134.89,18.0181305]
[1750582656019,37.40660496,134.9,134.89,18.0181305]
[1750582656323,6.38,134.9,134.89,18.0181305]
[1750582657031,6.38,134.9,134.89,28.62281301]
[1750582658939,6.38,134.9,134.89,18.0181305]
[1750582660819,6.38,134.9,134.89,26.0]
[1750582661237,6.38,134.9,134.89,36.60468251]
[1750582661844,6.38,134.9,134.89,47.20936502]
[1750582663114,6.38,134.9,134.89,54.62281301]
[1750582663521,6.38,134.9,134.89,44.0181305]
[1750582666444,6.38,134.9,134.89,54.62281301]
[1750582666750,159.8554,134.95,134.89,110.22367296]
[1750582666934,159.8554,134.95,134.94,10.60468251]
[1750582667638,159.8554,134.95,134.94,18.01538356]
[1750582669237,159.8554,134.95,134.94,7.41070105]
[1750582670523,159.8554,134.95,134.93,10.60468251]
[1750582670727,0.92643084,134.94,134.92,10.60468251]
[1750582670925,30.1,134.93,134.91,10.60468251]
[1750582671839,30.1,134.93,134.85,7.41564701]
[1750582671840,178.71869554,134.92,134.85,7.41564701]
[1750582672036,18.64964886,134.9,134.87,10.60468251]
[1750582672229,37.40686698,134.89,134.87,10.60468251]
[1750582672427,36.48,134.89,134.88,10.60468251]
[1750582672626,6.38,134.89,134.88,18.01868013]
[1750582675931,37.42650311,134.94,134.88,47.1583567]
[1750582676126,37.42650311,134.94,134.92,10.60468251]
[1750582678345,2.84137026,134.94,134.93,18.01593278]
[1750582678544,21.49101912,134.94,134.93,18.01593278]
[1750582678739,21.49101912,134.94,134.93,7.41125027]
[1750582678933,21.49101912,134.94,134.92,7.41179958]
[1750582679651,21.49101912,134.94,134.92,18.01648209]
[1750582680751,18.64964886,134.93,134.92,18.01648209]
[1750582680952,48.78964886,134.93,134.92,7.41179958]
[1750582681451,48.78964886,134.93,134.88,7.41399762]
[1750582681452,18.64964886,134.91,134.88,7.41399762]
[1750582681764,177.46461604,134.9,134.88,7.41399762]
[1750582681940,177.04,134.9,134.88,7.41399762]
[1750582682142,0.42461604,134.89,134.88,7.41399762]
[1750582682337,0.42461604,134.89,134.88,18.01868013]
[1750582682742,19.0742649,134.89,134.88,7.41399762]
[1750582682934,19.0742649,134.89,134.87,7.41454734]
[1750582683457,19.0742649,134.89,134.87,18.01922985]
[1750582685058,183.0914,134.9,134.88,10.60468251]
[1750582685946,0.42461604,134.89,134.88,10.60468251]
[1750582686143,183.0914,134.9,134.88,10.60468251]
[1750582686538,0.42461604,134.89,134.88,10.60468251]
[1750582686964,183.0914,134.9,134.89,7.41344799]
[1750582686965,201.74104886,134.9,134.89,7.41344799]
[1750582689368,201.74104886,134.9,134.87,18.53636835]
[1750582689564,0.42461604,134.89,134.88,10.60468251]
[1750582689953,201.74104886,134.9,134.88,10.60468251]
[1750582690262,0.42461604,134.89,134.88,10.60468251]
[1750582690469,201.74104886,134.9,134.88,10.60468251]
[1750582690846,0.42461604,134.89,134.88,10.60468251]
[1750582691369,0.42461604,134.89,134.88,18.01868013]
[1750582692173,201.74104886,134.9,134.88,18.01868013]
[1750582694780,183.0914,134.9,134.88,18.01868013]
[1750582694947,146.9,134.9,134.89,10.60468251]
[1750582696167,6.38,134.95,134.89,21.20936502]
[1750582696368,6.38,134.95,134.94,10.60468251]
[1750582696747,6.38,134.95,134.94,18.01538356]
[1750582698174,6.38,134.95,134.94,7.41070105]
[1750582698362,6.38,134.95,134.94,18.01538356]
[1750582701273,6.38,134.95,134.94,7.41070105]
[1750582701477,6.38,134.95,134.94,18.01538356]
[1750582701676,6.38,134.95,134.94,7.41070105]
[1750582701857,6.38,134.95,134.94,18.01538356]
[1750582703279,6.38,134.95,134.94,7.41070105]
[1750582703575,6.38,134.95,134.94,18.01538356]
[1750582703879,6.38,134.95,134.94,7.41070105]
[1750582704082,6.38,134.95,134.94,18.01538356]
[1750582704579,6.38,134.95,134.94,7.41070105]
[1750582705679,18.64964886,134.94,134.91,10.60468251]
[1750582705879,30.52461604,134.93,134.91,10.60468251]
[1750582706871,49.1742649,134.93,134.92,7.41179958]
[1750582708478,49.1742649,134.93,134.92,18.01648209]
[1750582708866,49.1742649,134.93,134.92,7.41179958]
[1750582713084,0.42461604,134.93,134.92,18.01648209]
[1750582713274,11.91689202,134.98,134.92,36.54598105]
[1750582713477,6.5301,135.01,134.95,26.0]
[1750582713678,0.42461604,135.0,134.98,10.60468251]
[1750582714067,12.06570921,135.01,134.98,10.60468251]
[1750582714068,6.95471604,135.01,134.98,10.60468251]
[1750582714268,6.95471604,135.01,134.99,10.60468251]
[1750582715061,25.6043649,135.01,135.0,7.4074074]
[1750582719688,165.54964886,135.0,134.96,36.53824949]
[1750582719882,30.56461604,134.99,134.96,36.53824949]
[1750582720083,30.56461604,134.99,134.96,25.93356698]
[1750582720382,30.56461604,134.99,134.96,36.53824949]
[1750582724588,30.56461604,134.99,134.97,10.60468251]
[1750582725885,49.2142649,134.99,134.98,7.40850496]
[1750582727501,49.2142649,134.99,134.97,7.40905386]
[1750582727870,30.14,134.99,134.97,18.01373637]
[1750582728073,146.9,135.0,134.98,10.60468251]
[1750582728675,146.9,135.0,134.99,10.60468251]
[1750582729181,84.6,135.03,134.99,10.60468251]
[1750582729397,84.6,135.03,135.01,10.60468251]
[1750582729595,0.42461604,135.02,135.01,18.01154126]
[1750582729777,0.42461604,135.02,135.01,7.40685875]
[1750582730097,6.80461604,135.03,135.01,7.40685875]
[1750582731204,6.80461604,135.03,135.01,18.01154126]
[1750582734483,6.38,135.03,135.01,44.01154126]
[1750582735996,6.38,135.03,135.02,18.01099268]
[1750582743912,6.38,135.03,135.02,7.40631017]
[1750582744793,146.9,135.06,135.02,36.52676812]
[1750582744995,6.4,135.08,135.05,10.60468251]
[1750582745193,6.4,135.08,135.02,97.80623516]
[1750582745426,6.4,135.08,135.07,10.60468251]
[1750582747207,146.9,135.1,135.07,10.60468251]
[1750582747507,146.9,135.1,135.08,10.60468251]
[1750582748584,146.9,135.1,135.09,7.40247242]
[1750582750183,146.9,135.1,135.09,18.00715493]
[1750582752430,7.2548254,135.12,135.09,18.00715493]
[1750582752731,7.2548254,135.12,135.1,10.60468251]
[1750582753421,7.2548254,135.12,135.11,7.40137665]
[1750582754826,7.2548254,135.12,135.11,10.60468251]
[1750582755906,7.2548254,135.12,135.11,18.00605916]
[1750582759022,7.2548254,135.12,135.1,10.60468251]
[1750582759604,7.2548254,135.12,135.11,10.60468251]
[1750582760731,7.2548254,135.12,135.11,18.00605916]
[1750582761032,0.9660254,135.12,135.11,44.00605916]
[1750582765449,0.9660254,135.12,135.11,18.00605916]
[1750582765812,0.9660254,135.12,135.11,7.40137665]
[1750582766933,18.64964886,135.09,135.07,7.40356852]
[1750582767128,0.42461604,135.08,135.06,7.40389649]
[1750582770725,0.42461604,135.08,135.05,10.60468251]
[1750582771739,0.42461604,135.08,135.06,7.40411668]
[1750582772740,176.15433137,135.07,135.02,10.60468251]
[1750582772944,18.64964886,135.05,135.01,62.52761535]
[1750582773253,0.42461604,135.04,135.02,10.60468251]
[1750582773845,19.0742649,135.05,135.03,7.40576168]
[1750582774224,38.54051604,135.06,135.03,18.01044419]
[1750582775220,38.54051604,135.06,135.04,10.60468251]
[1750582775221,0.42461604,135.06,135.04,10.60468251]
[1750582776034,0.42461604,135.06,135.05,7.40466493]
[1750582780046,165.54964886,135.07,135.05,7.40466493]
[1750582780245,0.42461604,135.06,135.05,7.40466493]
[1750582780438,165.54964886,135.07,135.05,18.00934744]
[1750582782236,0.42461604,135.06,135.05,18.00934744]
[1750582783249,165.54964886,135.07,135.05,18.00934744]
[1750582783250,146.9,135.07,135.05,18.00934744]
[1750582783558,146.9,135.07,135.06,10.60468251]
[1750582784339,146.9,135.07,135.06,18.00879919]
[1750582784641,146.9,135.07,135.06,7.40411668]
[1750582787354,146.9,135.07,135.06,18.00879919]
[1750582789859,146.9,135.07,135.06,10.60468251]
[1750582791150,146.9,135.07,135.05,10.60468251]
[1750582791565,146.9,135.07,135.06,10.60468251]
[1750582792070,146.9,135.07,135.06,18.00879919]
[1750582794966,146.9,135.07,135.06,7.40411668]
[1750582796363,146.9,135.07,135.05,10.60468251]
[1750582798667,146.9,135.07,135.06,7.40411668]
[1750582799666,146.9,135.07,135.06,18.00879919]
[1750582800044,146.9,135.07,135.06,7.40411668]
[1750582800249,6.4,135.08,135.06,18.00879919]
[1750582800479,6.4,135.08,135.07,10.60468251]
[1750582800847,6.4,135.08,135.06,10.60468251]
[1750582801163,6.4,135.08,135.05,18.5112063]